bitfinex/quotes_SOLUSD_20240712
["timestamp","ask_amount","ask_price","bid_price","bid_amount"]
[1720816974497,13.45,138.15,138.07,16.507]
[1720816974822,13.45,138.13,138.08,33.45]
[1720816974992,13.45,138.13,138.08,13.45]
[1720816974993,20.6895,138.13,138.08,13.45]
[1720816975190,13.45,138.12,138.04,6.0898]
[1720816975521,13.45,138.12,138.06,13.45]
[1720816976012,7.2402,138.12,138.03,15.4161]
[1720816976205,13.45,138.1,138.05,13.45]
[1720816981503,13.45,138.11,138.06,13.45]
[1720816981704,13.45,138.12,138.06,13.45]
[1720816982704,13.45,138.11,138.06,13.45]
[1720816983408,13.45,138.11,138.03,15.4161]
[1720816983734,13.45,138.11,138.05,13.45]
[1720816984107,13.818,138.13,138.06,13.45]
[1720816984301,13.45,138.11,138.06,13.45]
[1720816986220,13.45,138.12,138.07,13.45]
[1720816986420,13.45,138.11,138.06,13.45]
[1720816988012,6.5784,138.13,138.07,13.45]
[1720816988214,20.0284,138.13,138.07,13.45]
[1720816988919,20.0,138.12,138.07,13.45]
[1720816991239,27.2402,138.12,138.07,13.45]
[1720816993125,40.6902,138.12,138.07,13.45]
[1720816995420,21.3634,138.16,138.03,15.4161]
[1720816995625,28.6014,138.16,138.1,13.45]
[1720816995826,28.6014,138.16,138.11,13.45]
[1720816995827,42.0514,138.16,138.11,13.45]
[1720816996411,7.2385,138.15,138.11,13.45]
[1720816996612,20.6885,138.15,138.1,13.45]
[1720816996914,7.2385,138.15,138.08,20.0]
[1720816997122,7.2385,138.15,138.09,13.45]
[1720816997123,13.45,138.15,138.09,13.45]
[1720816997325,13.45,138.15,138.1,13.45]
[1720816997935,13.45,138.15,138.1,33.45]
[1720816998736,13.45,138.15,138.1,20.0]
[1720816999240,13.45,138.15,138.1,33.45]
[1720817003645,28.7391,138.16,138.1,33.45]
[1720817005341,28.7391,138.16,138.11,13.45]
[1720817005544,7.2377,138.17,138.11,13.45]
[1720817005728,13.45,138.16,138.1,20.0]
[1720817005932,13.45,138.16,138.11,13.45]
[1720817006245,13.45,138.16,138.1,33.45]
[1720817009440,13.45,138.16,138.11,13.45]
[1720817012555,7.2371,138.18,138.11,13.45]
[1720817012854,13.45,138.16,138.11,13.45]
[1720817013251,37.30279033,138.19,138.12,13.45]
[1720817013548,13.45,138.17,138.12,13.45]
[1720817013847,45.0,138.18,138.13,13.45]
[1720817013848,58.45,138.18,138.13,13.45]
[1720817014637,45.0,138.18,138.13,13.45]
[1720817014842,7.57930919,138.19,138.15,13.45]
[1720817015064,20.6859,138.2,138.15,13.45]
[1720817015266,20.0,138.19,138.15,13.45]
[1720817015854,20.6859,138.2,138.15,13.45]
[1720817016173,7.2359,138.2,138.16,13.45]
[1720817016664,20.6854,138.21,138.16,13.45]
[1720817016967,20.1854,138.21,138.16,13.45]
[1720817017170,7.2359,138.2,138.16,13.45]
[1720817017549,40.6859,138.2,138.15,13.45]
[1720817018476,40.6859,138.2,138.13,15.0902]
[1720817018649,40.6859,138.2,138.15,13.45]
[1720817018650,45.0,138.19,138.15,13.45]
[1720817019563,17.3291491,138.22,138.15,13.45]
[1720817019770,17.3291491,138.22,138.17,13.45]
[1720817020074,20.0,138.21,138.17,13.45]
[1720817023149,17.3291491,138.22,138.17,13.45]
[1720817023346,0.8505491,138.22,138.18,13.45]
[1720817023654,0.8505491,138.22,138.13,15.0902]
[1720817023655,0.8505491,138.22,138.19,13.45]
[1720817023848,0.8505491,138.22,138.2,13.45]
[1720817024061,0.8505491,138.22,138.19,13.45]
[1720817024453,0.8505491,138.22,138.14,6.2803]
[1720817024766,0.8505491,138.22,138.17,13.45]
[1720817024966,14.3005491,138.22,138.17,13.45]
[1720817025164,0.8505491,138.22,138.17,13.45]
[1720817026255,13.45,138.2,138.15,13.45]
[1720817026581,34.3005491,138.22,138.17,13.45]
[1720817026752,22.4675,138.21,138.1,21.8605]
[1720817026951,13.45,138.18,138.13,13.45]
[1720817027256,33.45,138.19,138.13,13.45]
[1720817028068,33.45,138.19,138.14,13.45]
[1720817028874,13.45,138.19,138.14,13.45]
[1720817029769,13.45,138.18,138.13,13.45]
[1720817030080,45.0,138.17,138.1,15.5802]
[1720817030263,13.45,138.16,138.1,15.5802]
[1720817030598,13.45,138.16,138.11,13.45]
[1720817031170,58.45,138.17,138.11,13.45]
[1720817031674,58.45,138.17,138.12,13.45]
[1720817033061,45.0,138.17,138.12,13.45]
[1720817033470,7.236,138.2,138.12,13.45]
[1720817033655,13.45,138.18,138.12,13.45]
[1720817034057,13.45,138.18,138.13,13.45]
[1720817036055,58.45,138.17,138.11,20.0]
[1720817036266,13.45,138.17,138.12,13.45]
[1720817036764,55.0,138.19,138.06,22.2988]
[1720817037068,55.0,138.19,138.08,13.45]
[1720817037069,13.45,138.14,138.08,13.45]
[1720817037271,13.45,138.14,138.06,22.2988]
[1720817037478,13.45,138.14,138.08,13.45]
[1720817038569,13.45,138.15,138.09,13.45]
[1720817038961,13.45,138.15,138.1,13.45]
[1720817039775,22.5305,138.16,138.1,13.45]
[1720817039983,33.45,138.15,138.1,13.45]
[1720817041081,13.45,138.15,138.1,13.45]
[1720817041661,35.9805,138.16,138.1,13.45]
[1720817041882,82.74080798,138.19,138.07,20.0]
[1720817042073,13.45,138.18,138.12,13.45]
[1720817042385,45.0,138.17,138.12,13.45]
[1720817042972,65.0,138.17,138.12,13.45]
[1720817043180,32.99579068,138.19,138.08,58.45]
[1720817043181,16.5473,138.19,138.09,15.5773]
[1720817043379,13.45,138.2,138.15,13.45]
[1720817045665,14.5918491,138.22,138.15,13.45]
[1720817045666,13.45,138.21,138.15,13.45]
[1720817046064,13.45,138.21,138.11,6.4115]
[1720817046065,20.8068491,138.22,138.14,16.0711]
[1720817046280,20.8068491,138.22,138.18,13.45]
[1720817046281,0.8505491,138.22,138.18,13.45]
[1720817046885,0.8505491,138.22,138.19,13.45]
[1720817047579,0.8505491,138.22,138.2,13.45]
[1720817048092,0.8505491,138.22,138.19,13.45]
[1720817054294,0.8505491,138.22,138.2,13.45]
[1720817055175,0.8505491,138.22,138.16,20.0458]
[1720817055176,0.8505491,138.22,138.21,13.45]
[1720817056298,0.8505491,138.22,138.2,13.45]
[1720817058176,0.8505491,138.22,138.16,20.0458]
[1720817058381,0.8505491,138.22,138.17,45.0]
[1720817059214,0.8505491,138.22,138.18,15.1014]
[1720817059902,0.8505491,138.22,138.21,13.45]
[1720817060499,0.8505491,138.22,138.21,33.45]
[1720817062207,0.8505491,138.22,138.21,78.45]
[1720817062387,0.8505491,138.22,138.21,33.45]
[1720817063773,25.64609582,138.33,138.21,33.45]
[1720817063774,0.8505491,138.35,138.22,16.5406]
[1720817063974,0.8505491,138.35,138.31,13.45]
[1720817064491,0.8505491,138.35,138.32,6.4746]
[1720817064791,0.8505491,138.35,138.31,28.9341]
[1720817064792,0.8505491,138.35,138.31,13.45]
[1720817066888,0.8505491,138.35,138.27,15.4841]
[1720817067302,0.8505491,138.35,138.29,13.45]
[1720817067802,8.0786491,138.35,138.24,6.4927]
[1720817068003,13.45,138.32,138.24,6.4927]
[1720817068188,13.45,138.32,138.27,13.45]
[1720817068389,13.45,138.34,138.28,13.45]
[1720817068882,13.45,138.33,138.28,13.45]
[1720817069107,13.45,138.34,138.29,13.45]
[1720817070385,13.45,138.34,138.24,60.2927]
[1720817070692,13.45,138.33,138.28,13.45]
[1720817071090,13.45,138.32,138.27,13.45]
[1720817071308,13.45,138.33,138.28,13.45]
[1720817071880,0.8505491,138.35,138.29,13.45]
[1720817072087,13.45,138.34,138.29,13.45]
[1720817072304,45.8505491,138.35,138.3,13.45]
[1720817072493,33.45,138.34,138.29,13.45]
[1720817074205,33.45,138.34,138.24,60.2927]
[1720817074405,33.45,138.34,138.29,13.45]
[1720817074716,20.0,138.34,138.29,13.45]
[1720817074916,33.45,138.34,138.29,13.45]
[1720817076890,20.0,138.34,138.29,13.45]
[1720817077088,33.45,138.34,138.29,13.45]
[1720817077907,20.0,138.34,138.29,13.45]
[1720817078214,33.45,138.34,138.29,13.45]
[1720817079016,13.45,138.34,138.29,13.45]
[1720817079919,14.3005491,138.35,138.29,13.45]
[1720817080625,20.6786,138.34,138.29,13.45]
[1720817080803,13.45,138.33,138.28,13.45]
[1720817081606,27.2286,138.34,138.28,13.45]
[1720817081818,33.45,138.34,138.28,13.45]
[1720817082324,20.0,138.34,138.29,13.45]
[1720817082501,33.45,138.34,138.29,13.45]
[1720817083221,19.5,138.34,138.25,65.0]
[1720817083394,8.0787491,138.35,138.29,13.45]
[1720817083599,13.45,138.34,138.29,13.45]
[1720817084010,20.6786,138.34,138.29,13.45]
[1720817084394,13.45,138.34,138.25,20.0]
[1720817084600,66.6563,138.33,138.23,16.3793]
[1720817084795,13.45,138.3,138.25,13.45]
[1720817086697,13.45,138.29,138.24,13.45]
[1720817086897,13.45,138.29,138.23,16.3793]
[1720817087098,13.45,138.3,138.24,13.45]
[1720817087523,13.45,138.3,138.23,16.3793]
[1720817087696,13.45,138.29,138.24,13.45]
[1720817088602,13.45,138.3,138.25,13.45]
[1720817088928,13.45,138.29,138.24,13.45]
[1720817089110,13.45,138.3,138.24,13.45]
[1720817089837,7.2297,138.32,138.24,13.45]
[1720817090128,13.45,138.32,138.26,13.45]
[1720817090525,13.45,138.32,138.27,13.45]
[1720817090715,35.1063,138.33,138.28,13.45]
[1720817091123,20.0,138.31,138.28,13.45]
[1720817091627,0.8505491,138.35,138.29,13.45]
[1720817091817,13.45,138.34,138.29,13.45]
[1720817092327,14.3005491,138.35,138.27,15.9975]
[1720817092524,13.45,138.34,138.29,13.45]
[1720817093143,20.0,138.33,138.29,13.45]
[1720817093814,0.8505491,138.35,138.3,13.45]
[1720817094014,0.8505491,138.35,138.31,13.45]
[1720817095530,20.8505491,138.35,138.27,22.3942]
[1720817095847,34.3005491,138.35,138.3,13.45]
[1720817096015,21.5285491,138.35,138.3,13.45]
[1720817096342,41.5285491,138.35,138.3,13.45]
[1720817096837,41.5285491,138.35,138.29,13.45]
[1720817098140,41.5285491,138.35,138.3,13.45]
[1720817099612,28.0785491,138.35,138.3,13.45]
[1720817099812,41.5285491,138.35,138.3,13.45]
[1720817100213,41.5285491,138.35,138.27,22.3942]
[1720817100214,13.45,138.33,138.27,22.3942]
[1720817100436,13.45,138.33,138.28,13.45]
[1720817100617,20.8505491,138.35,138.29,13.45]
[1720817100818,13.45,138.34,138.29,13.45]
[1720817101140,14.3005491,138.35,138.3,13.45]
[1720817101446,14.3005491,138.35,138.25,13.45]
[1720817101447,13.45,138.31,138.25,13.45]
[1720817101745,13.45,138.31,138.24,21.0205]
[1720817101746,7.2293,138.33,138.27,13.45]
[1720817101917,20.0,138.32,138.27,13.45]
[1720817102123,33.45,138.32,138.27,13.45]
[1720817102324,16.2817,138.34,138.24,34.4705]
[1720817102535,0.8505491,138.35,138.24,74.8205]
[1720817102830,0.8505491,138.35,138.32,13.45]
[1720817104420,0.8505491,138.35,138.34,13.45]
[1720817106147,0.8505491,138.35,138.3,22.144]
[1720817106148,0.8505491,138.35,138.33,13.45]
[1720817108735,0.8505491,138.35,138.34,13.45]
[1720817110249,0.3505491,138.35,138.34,13.45]
[1720817114637,0.3505491,138.35,138.34,33.45]
[1720817114839,0.3505491,138.35,138.34,20.0]
[1720817115040,0.3505491,138.35,138.31,20.0]
[1720817115226,0.3505491,138.35,138.34,13.45]
[1720817116532,0.3505491,138.35,138.31,20.0]
[1720817116734,0.3505491,138.35,138.34,13.45]
[1720817119025,28.6265,138.46,138.35,6.5412]
[1720817119228,15.1765,138.46,138.41,13.45]
[1720817120023,15.1765,138.46,138.36,20.0]
[1720817120024,15.1765,138.46,138.42,13.45]
[1720817120251,19.9887,138.47,138.36,20.0]
[1720817120252,6.5387,138.47,138.36,20.0]
[1720817120447,6.5387,138.47,138.43,13.45]
[1720817120753,6.5387,138.47,138.42,13.45]
[1720817121225,16.0270491,138.49,138.4,16.4783]
[1720817121428,29.4770491,138.49,138.4,29.9283]
[1720817121635,29.4770491,138.49,138.44,13.45]
[1720817121852,29.4770491,138.49,138.43,13.45]
[1720817122359,0.8505491,138.49,138.45,13.45]
[1720817122570,0.8505491,138.49,138.42,6.5412]
[1720817123659,0.8505491,138.49,138.43,42.9619]
[1720817123864,0.8505491,138.49,138.43,16.1919]
[1720817124158,0.8505491,138.49,138.43,36.1919]
[1720817124640,0.3505491,138.49,138.43,36.1919]
[1720817125638,0.3505491,138.49,138.43,16.1919]
[1720817127136,0.3505491,138.49,138.42,6.5412]
[1720817127332,0.3505491,138.49,138.36,10.50247789]
[1720817127333,0.3505491,138.49,138.37,6.4909]
[1720817127549,7.2215,138.48,138.37,6.4909]
[1720817127855,55.0,138.47,138.35,16.1919]
[1720817128057,7.2231,138.45,138.35,16.1919]
[1720817128262,75.0,138.44,138.35,16.1919]
[1720817128768,74.5,138.44,138.33,6.4909]
[1720817129462,30.0,138.44,138.33,6.4909]
[1720817130965,30.0,138.44,138.34,65.0]
[1720817132239,30.0,138.44,138.34,91.77]
[1720817134269,30.0,138.44,138.34,65.0]
[1720817134478,45.8404,138.44,138.34,65.0]
[1720817135576,45.0,138.43,138.34,20.0]
[1720817135771,30.0,138.42,138.31,15.615]
[1720817136944,30.0,138.42,138.35,20.0]
[1720817137366,30.0,138.42,138.32,20.0]
[1720817138677,30.0,138.42,138.33,45.0]
[1720817138844,30.0,138.42,138.34,20.0]
[1720817143760,45.0,138.43,138.34,20.0]
[1720817144283,30.0,138.41,138.34,20.0]
[1720817144978,45.0,138.43,138.34,20.0]
[1720817145175,15.8404,138.44,138.34,20.0]
[1720817145378,15.8404,138.44,138.35,45.0]
[1720817146569,15.8404,138.44,138.36,20.0]
[1720817150663,15.8404,138.44,138.38,13.4]
[1720817150664,29.2404,138.44,138.38,13.4]
[1720817150867,13.4,138.43,138.38,13.4]
[1720817151379,6.2143,138.46,138.41,13.4]
[1720817151585,16.2149,138.47,138.41,13.4]
[1720817151586,29.6149,138.47,138.41,13.4]
[1720817151769,13.4,138.46,138.41,13.4]
[1720817152687,16.2149,138.47,138.39,20.0]
[1720817153098,16.2149,138.47,138.38,20.0]
[1720817153285,16.2149,138.47,138.39,45.0]
[1720817153595,16.2149,138.47,138.4,20.0]
[1720817154073,16.2149,138.47,138.38,20.0]
[1720817154277,16.2149,138.47,138.39,45.0]
[1720817154499,16.2149,138.47,138.4,20.0]
[1720817154671,6.4714491,138.49,138.4,20.0]
[1720817155895,6.4714491,138.49,138.41,45.0]
[1720817156268,0.3505491,138.49,138.41,45.0]
[1720817157587,0.3505491,138.49,138.42,20.0]
[1720817157789,0.3505491,138.49,138.44,15.8931]
[1720817158505,0.3505491,138.49,138.45,20.0]
[1720817162698,0.3505491,138.49,138.46,45.0]
[1720817163171,0.3505491,138.49,138.45,20.0]
[1720817167289,16.1425491,138.55,138.45,20.0]
[1720817169492,16.1425491,138.55,138.46,45.0]
[1720817170510,16.1425491,138.55,138.47,20.0]
[1720817171182,16.1425491,138.55,138.45,20.0]
[1720817174595,16.1425491,138.55,138.49,13.38]
[1720817174801,6.6258,138.56,138.52,13.38]
[1720817174980,15.7186,138.58,138.53,13.38]
[1720817175186,29.0986,138.58,138.53,13.38]
[1720817175407,15.7186,138.58,138.54,13.38]
[1720817175988,15.7186,138.58,138.48,53.52]
[1720817176189,29.0986,138.58,138.49,20.0]
[1720817176701,15.7186,138.58,138.49,20.0]
[1720817177090,15.7186,138.58,138.48,20.0]
[1720817177409,15.7186,138.58,138.49,45.0]
[1720817177989,15.7186,138.58,138.5,15.6722]
[1720817178807,15.7186,138.58,138.51,20.0]
[1720817179811,16.3643,138.62,138.51,20.0]
[1720817180707,45.0,138.61,138.51,20.0]
[1720817181190,16.3643,138.62,138.51,20.0]
[1720817183191,45.0,138.61,138.51,20.0]
[1720817184802,16.3643,138.62,138.51,20.0]
[1720817186012,45.0,138.61,138.5,42.4122]
[1720817186588,45.0,138.61,138.52,20.0]
[1720817187318,45.0,138.61,138.5,15.6722]
[1720817187319,16.3643,138.62,138.51,20.0]
[1720817189600,16.3643,138.62,138.5,42.4122]
[1720817189800,16.3643,138.62,138.51,20.0]
[1720817194610,16.3643,138.62,138.52,45.0]
[1720817194809,7.3079491,138.63,138.52,45.0]
[1720817195825,7.3079491,138.63,138.53,20.0]
[1720817196607,13.36,138.6,138.55,13.36]
[1720817197216,13.36,138.61,138.56,13.36]
[1720817197616,13.36,138.62,138.57,13.36]
[1720817198327,7.3079491,138.63,138.57,13.36]
[1720817198623,13.36,138.62,138.57,13.36]
[1720817198827,7.3079491,138.63,138.57,13.36]
[1720817199009,13.36,138.62,138.57,13.36]
[1720817199209,7.3079491,138.63,138.57,13.36]
[1720817199210,20.6679491,138.63,138.57,13.36]
[1720817199627,13.36,138.62,138.57,13.36]
[1720817200806,14.2105491,138.63,138.57,13.36]
[1720817201222,14.2105491,138.63,138.58,13.36]
[1720817203044,0.8505491,138.63,138.59,13.36]
[1720817207246,0.8505491,138.63,138.62,13.36]
[1720817207945,0.8505491,138.63,138.6,15.9307]
[1720817208243,0.8505491,138.63,138.57,15.9307]
[1720817208448,0.8505491,138.63,138.6,13.36]
[1720817208623,0.8505491,138.63,138.59,13.36]
[1720817209039,0.8505491,138.63,138.58,13.36]
[1720817209245,14.2105491,138.63,138.58,13.36]
[1720817209821,0.8505491,138.63,138.58,13.36]
[1720817210024,13.36,138.62,138.53,21.3163]
[1720817210225,6.8904491,138.63,138.56,13.36]
[1720817210226,13.36,138.61,138.56,13.36]
[1720817210440,6.8904491,138.63,138.57,13.36]
[1720817210652,13.36,138.62,138.57,13.36]
[1720817211842,13.36,138.61,138.53,21.3163]
[1720817212052,13.36,138.61,138.56,13.36]
[1720817213149,13.36,138.59,138.54,13.36]
[1720817214831,7.2142,138.62,138.54,13.36]
[1720817214832,13.36,138.6,138.54,13.36]
[1720817215037,14.1040491,138.63,138.55,13.36]
[1720817215247,13.36,138.61,138.56,13.36]
[1720817215652,45.0,138.62,138.56,13.36]
[1720817215853,13.36,138.61,138.56,13.36]
[1720817216050,14.1040491,138.63,138.57,13.36]
[1720817216051,6.8904491,138.63,138.57,13.36]
[1720817216350,20.2504491,138.63,138.57,13.36]
[1720817216729,13.36,138.62,138.57,13.36]
[1720817218035,13.36,138.6,138.53,15.1968]
[1720817218243,13.36,138.6,138.54,13.36]
[1720817218436,14.1040491,138.63,138.56,13.36]
[1720817218638,6.8904491,138.63,138.56,13.36]
[1720817218946,0.8505491,138.63,138.59,13.36]
[1720817219150,0.8505491,138.63,138.55,6.3207]
[1720817219358,0.8505491,138.63,138.57,13.36]
[1720817219359,14.2105491,138.63,138.57,13.36]
[1720817220847,13.36,138.61,138.53,15.1968]
[1720817221048,13.36,138.6,138.55,13.36]
[1720817221257,8.0640491,138.63,138.56,13.36]
[1720817221258,13.36,138.61,138.56,13.36]
[1720817222038,0.8505491,138.63,138.56,13.36]
[1720817222337,13.36,138.62,138.57,13.36]
[1720817223164,0.8505491,138.63,138.57,13.36]
[1720817223362,14.2105491,138.63,138.57,13.36]
[1720817223662,13.36,138.62,138.57,13.36]
[1720817226531,13.36,138.61,138.56,13.36]
[1720817227956,13.36,138.61,138.53,15.1968]
[1720817228162,13.36,138.6,138.54,13.36]
[1720817228665,13.36,138.59,138.53,15.1968]
[1720817228833,13.36,138.59,138.54,13.36]
[1720817229229,13.36,138.58,138.53,15.1968]
[1720817229435,13.36,138.57,138.53,15.1968]
[1720817229664,13.36,138.58,138.53,28.5568]
[1720817230043,13.36,138.56,138.5,23.99092351]
[1720817230243,15.9206,138.59,138.51,13.36]
[1720817230449,13.36,138.56,138.51,13.36]
[1720817230646,15.9206,138.59,138.52,13.36]
[1720817230967,15.9206,138.59,138.5,23.99092351]
[1720817230968,13.36,138.58,138.53,13.36]
[1720817231344,13.36,138.57,138.5,26.87175526]
[1720817231546,29.2806,138.59,138.5,26.87175526]
[1720817231747,6.5081,138.61,138.55,13.36]
[1720817231964,13.36,138.6,138.55,13.36]
[1720817232264,19.8681,138.61,138.55,13.36]
[1720817232447,13.36,138.61,138.56,13.36]
[1720817232656,0.8505491,138.63,138.58,13.36]
[1720817232854,14.2105491,138.63,138.58,13.36]
[1720817234062,14.2105491,138.63,138.57,13.36]
[1720817234063,13.36,138.62,138.57,13.36]
[1720817234743,13.36,138.62,138.56,13.36]
[1720817235739,13.36,138.61,138.56,13.36]
[1720817236337,0.8505491,138.63,138.55,16.4357]
[1720817236338,13.36,138.6,138.55,16.4357]
[1720817236552,13.36,138.61,138.56,13.36]
[1720817238561,15.0657,138.62,138.51,16.2719]
[1720817238763,13.36,138.59,138.53,13.36]
[1720817239144,45.0,138.61,138.51,16.2719]
[1720817239466,13.36,138.6,138.54,13.36]
[1720817240150,13.36,138.59,138.54,13.36]
[1720817240962,45.0,138.61,138.54,13.36]
[1720817241161,15.0657,138.62,138.54,13.36]
[1720817241343,15.0657,138.62,138.55,13.36]
[1720817241859,13.36,138.61,138.56,13.36]
[1720817243670,13.36,138.61,138.55,13.36]
[1720817244046,13.36,138.61,138.52,20.0]
[1720817244251,13.36,138.6,138.55,13.36]
[1720817245278,13.36,138.61,138.55,13.36]
[1720817245473,0.8505491,138.63,138.52,20.0]
[1720817245656,0.8505491,138.63,138.59,13.36]
[1720817245859,0.8505491,138.63,138.6,13.36]
[1720817246746,0.8505491,138.63,138.56,20.0]
[1720817247055,0.8505491,138.63,138.59,13.36]
[1720817247268,0.8505491,138.63,138.6,13.36]
[1720817249353,0.8505491,138.63,138.59,13.36]
[1720817249771,0.8505491,138.63,138.6,13.36]
[1720817250480,0.8505491,138.63,138.59,13.36]
[1720817251069,14.2105491,138.63,138.58,29.4647]
[1720817251679,0.8505491,138.63,138.58,29.4647]
[1720817252646,0.8505491,138.63,138.59,13.36]
[1720817253153,0.8505491,138.63,138.58,29.4647]
[1720817254274,0.8505491,138.63,138.54,15.7716]
[1720817254458,0.8505491,138.63,138.56,13.36]
[1720817254459,13.36,138.61,138.56,13.36]
[1720817254663,13.36,138.61,138.54,15.7716]
[1720817254664,13.36,138.61,138.55,13.36]
[1720817255684,16.525,138.62,138.54,15.7716]
[1720817255863,45.0,138.61,138.54,13.36]
[1720817256670,45.0,138.61,138.53,13.36]
[1720817256875,13.36,138.57,138.51,15.4946]
[1720817257180,13.36,138.57,138.52,13.36]
[1720817258178,13.36,138.58,138.53,13.36]
[1720817258990,45.0,138.61,138.54,13.36]
[1720817258991,13.36,138.59,138.54,13.36]
[1720817262986,16.525,138.62,138.54,13.36]
[1720817263174,13.36,138.6,138.54,13.36]
[1720817263963,13.36,138.59,138.54,13.36]
[1720817264162,6.0351,138.57,138.47,16.2402]
[1720817264379,13.36,138.53,138.47,16.2402]
[1720817264687,60.9497,138.56,138.47,16.2402]
[1720817264688,13.36,138.52,138.47,16.2402]
[1720817265978,13.36,138.51,138.44,16.2402]
[1720817266204,13.36,138.51,138.45,13.36]
[1720817266486,13.36,138.51,138.44,16.2402]
[1720817266781,10.0,138.55,138.44,16.2402]
[1720817266953,45.0,138.54,138.44,16.2402]
[1720817267390,6.0351,138.54,138.39,35.29710527]
[1720817267590,45.0,138.53,138.45,20.0]
[1720817268177,45.0,138.53,138.4,46.77]
[1720817268681,45.0,138.53,138.41,45.0]
[1720817268882,45.0,138.53,138.42,20.0]
[1720817269785,6.0351,138.54,138.42,20.0]
[1720817270095,6.0351,138.54,138.44,22.4447]
[1720817270274,6.0351,138.54,138.45,20.0]
[1720817273589,45.0,138.53,138.45,20.0]
[1720817275473,6.0351,138.54,138.45,20.0]
[1720817275990,45.0,138.53,138.45,20.0]
[1720817276392,6.0351,138.54,138.45,20.0]
[1720817277300,45.0,138.53,138.45,20.0]
[1720817281594,45.0,138.53,138.44,16.2402]
[1720817284503,15.9497,138.56,138.45,20.0]
[1720817285217,16.29975826,138.58,138.46,6.0256]
[1720817285697,19.44305857,138.58,138.46,6.0256]
[1720817285901,9.44305857,138.58,138.46,6.0256]
[1720817286410,6.5997,138.58,138.46,6.0256]
[1720817286581,6.5997,138.58,138.47,16.1891]
[1720817286782,6.5997,138.58,138.47,36.1891]
[1720817286783,16.5997,138.58,138.47,36.1891]
[1720817287103,23.8158,138.58,138.47,36.1891]
[1720817287603,45.0,138.57,138.47,36.1891]
[1720817288287,45.0,138.57,138.47,37.62912122]
[1720817288601,13.38,138.54,138.48,13.38]
[1720817288999,13.38,138.54,138.47,36.1891]
[1720817289203,13.38,138.54,138.49,13.38]
[1720817290385,13.38,138.53,138.48,13.38]
[1720817291393,13.38,138.53,138.39,7.246]
[1720817291394,13.38,138.49,138.43,15.9442]
[1720817291586,6.2231,138.52,138.43,15.9442]
[1720817291587,13.38,138.47,138.43,15.9442]
[1720817291902,45.0,138.48,138.43,29.3242]
[1720817292104,13.38,138.49,138.44,13.38]
[1720817292312,15.0744,138.54,138.45,13.38]
[1720817292491,13.38,138.51,138.45,13.38]
[1720817293092,13.38,138.5,138.45,13.38]